bitfinex-derivatives/quotes_ETHF0:USTF0_20250321
["timestamp","ask_amount","ask_price","bid_price","bid_amount"]
[1742572378774,0.00767794,1953.1,1953.0,3.10005]
[1742572379086,0.00767794,1953.1,1952.8,1.02463]
[1742572379266,1.02463,1952.9,1952.8,1.4097]
[1742572379471,1.02471,1952.7,1952.6,1.69052]
[1742572380173,1.02476,1952.6,1952.5,4.23259]
[1742572380378,1.02474,1952.7,1952.6,1.02475]
[1742572380580,3.435,1952.8,1952.5,4.23257]
[1742572380874,1.02481,1952.5,1952.4,1.69062]
[1742572381185,1.02481,1952.5,1952.4,0.6658]
[1742572381371,4.4598,1952.6,1952.5,1.02481]
[1742572381573,3.435,1952.6,1952.3,45.0327]
[1742572381783,1.02491,1952.4,1952.2,1.72032]
[1742572382073,3.06745,1952.5,1952.4,1.02487]
[1742572382275,1.02487,1952.4,1952.3,4.6069]
[1742572382475,2.41517,1952.4,1952.3,4.23268]
[1742572383082,2.41517,1952.4,1952.3,3.2078]
[1742572383475,2.41517,1952.4,1952.1,44.235]
[1742572383476,1.02497,1952.2,1952.1,44.0078]
[1742572383673,1.02497,1952.2,1952.1,40.8]
[1742572383881,3.96942,1952.3,1951.9,1.3416]
[1742572384073,1.02508,1952.0,1951.9,4.5494]
[1742572384568,1.02508,1952.0,1951.9,2.36673]
[1742572384771,1.02508,1952.0,1951.9,4.5494]
[1742572384973,1.4071,1952.0,1951.7,1.0252]
[1742572385168,1.4071,1952.0,1951.8,1.02518]
[1742572385382,1.02518,1951.8,1951.7,1.02521]
[1742572385576,4.84977794,1952.0,1951.7,1.02521]
[1742572385883,2.43226,1951.9,1951.7,1.0252]
[1742572386077,2.43228,1951.9,1951.7,1.02523]
[1742572386288,1.4071,1951.9,1951.6,4.23305]
[1742572386584,1.3908,1951.8,1951.6,4.23305]
[1742572386876,2.41603,1951.8,1951.6,4.23305]
[1742572387381,1.02523,1951.7,1951.6,4.23305]
[1742572387582,1.3908,1951.7,1951.6,4.23305]
[1742572388085,1.3908,1951.7,1951.6,45.03305]
[1742572389975,4.46779794,1952.0,1951.8,1.02518]
[1742572390180,1.02513,1951.9,1951.8,1.02518]
[1742572390383,2.40933,1951.9,1951.8,1.02518]
[1742572390883,1.3842,1951.9,1951.8,1.02518]
[1742572391086,2.40933,1951.9,1951.7,1.0252]
[1742572391280,1.3842,1951.9,1951.8,1.02518]
[1742572392481,4.46877794,1952.0,1951.8,4.23294]
[1742572392687,0.00767794,1952.0,1951.9,1.02513]
[1742572393389,0.00767794,1952.0,1951.9,41.82513]
[1742572393587,1.36007794,1952.0,1951.9,41.82513]
[1742572393789,0.00767794,1952.0,1951.9,41.82513]
[1742572393987,0.00767794,1952.0,1951.9,42.46883]
[1742572395190,2.37727,1952.4,1952.3,1.02492]
[1742572395383,1.3524,1952.4,1952.3,1.02492]
[1742572395893,2.37727,1952.4,1952.3,1.02492]
[1742572396692,1.02492,1952.3,1952.2,4.88979794]
[1742572396985,5.76432,1952.3,1952.2,0.00767794]
[1742572397190,6.46982,1952.3,1952.2,0.00767794]
[1742572397780,6.55673081,1952.3,1952.2,0.00767794]
[1742572397986,2.56259,1952.1,1951.7,1.0252]
[1742572398290,4.0864,1952.0,1951.6,3.2078]
[1742572398481,1.0252,1951.8,1951.7,1.02521]
[1742572398695,2.42328,1951.9,1951.8,1.02518]
[1742572398891,1.02518,1951.8,1951.7,2.40479]
[1742572399089,2.42328,1951.8,1951.7,2.40479]
[1742572400489,1.3981,1951.8,1951.7,2.40479]
[1742572400690,2.42328,1951.8,1951.7,2.40479]
[1742572401089,1.3981,1951.8,1951.7,2.40479]
[1742572401287,1.02517,1951.9,1951.8,1.02518]
[1742572401489,2.33807,1951.9,1951.8,5.65758]
[1742572401679,2.33807,1951.9,1951.8,1.4246]
[1742572401992,2.33807,1951.9,1951.8,2.44978]
[1742572402489,5.11151,1952.0,1951.9,1.02513]
[1742572402679,6.42441,1952.0,1951.9,2.44973]
[1742572402884,6.42441,1952.0,1951.9,1.4246]
[1742572404989,3.436,1952.0,1951.9,2.44973]
[1742572405491,4.46108,1952.0,1951.9,2.44973]
[1742572405689,4.46108,1952.0,1951.9,3.14163]
[1742572405889,3.436,1952.0,1951.9,3.83753]
[1742572406092,4.46108,1952.0,1951.9,3.83753]
[1742572406387,5.87178,1952.0,1951.9,2.1165]
[1742572406595,5.87178,1952.0,1951.9,3.14163]
[1742572407886,5.87178,1952.0,1951.9,2.1165]
[1742572408993,5.87178,1952.0,1951.9,3.14163]
[1742572409695,5.87178,1952.0,1951.9,2.1165]
[1742572409895,4.8467,1952.0,1951.6,0.6485]
[1742572410093,1.02529,1951.6,1951.5,1.2948]
[1742572410896,2.38969,1951.6,1951.5,1.2948]
[1742572412392,1.02544,1951.3,1951.2,0.6485]
[1742572412886,1.02544,1951.3,1950.6,5.77232]
[1742572412887,5.936,1951.3,1950.6,5.77232]
[1742572413194,3.2078,1951.1,1950.7,0.6957]
[1742572413394,3.2078,1950.9,1950.2,3.2078]
[1742572413593,6.0880449,1950.8,1950.3,0.6957]
[1742572413796,1.19703089,1950.7,1950.3,4.5921]
[1742572413996,3.437,1950.6,1950.4,4.5393]
[1742572414192,3.437,1950.6,1950.4,5.56517]
[1742572414400,4.46281,1950.6,1950.4,4.5393]
[1742572414596,1.02587,1950.5,1950.4,1.3315]
[1742572414896,1.02587,1950.5,1950.0,41.82609]
[1742572414897,1.02604,1950.2,1950.0,41.82609]
[1742572415098,1.02604,1950.2,1950.1,1.3315]
[1742572415297,1.02629,1949.7,1949.6,3.2078]
[1742572415495,3.437,1949.8,1949.5,3.2078]
[1742572415694,3.437,1949.8,1949.7,3.2078]
[1742572415898,2.0689,1950.1,1949.7,4.23406]
[1742572416093,3.437,1950.0,1949.8,1.3315]
[1742572416495,3.437,1950.0,1949.8,4.5393]
[1742572416698,4.46315,1950.0,1949.8,1.3315]
[1742572416891,3.437,1950.0,1949.9,1.3029]
[1742572417701,4.7744,1950.0,1949.9,1.3029]
[1742572417897,4.46313,1950.0,1949.9,1.3029]
[1742572418201,3.437,1950.0,1949.9,1.3029]
[1742572418403,4.46313,1950.0,1949.9,1.3029]
[1742572418700,4.46313,1950.0,1949.8,3.2078]
[1742572418701,4.7744,1950.0,1949.6,3.2078]
[1742572418896,4.7744,1950.0,1949.5,1.02639]
[1742572419090,3.2078,1949.9,1949.4,4.5107]
[1742572419290,1.02637,1949.6,1949.4,4.5107]
[1742572419594,3.2078,1950.2,1949.8,1.0262]
[1742572419790,6.73445386,1950.1,1949.7,1.02628]
[1742572419991,1.2904,1950.0,1949.6,3.2078]
[1742572420197,1.02618,1949.9,1949.7,1.3071]
[1742572420398,3.444,1949.8,1949.7,2.33335]
[1742572420598,3.444,1949.8,1949.7,1.3071]
[1742572421194,3.444,1949.8,1949.7,2.33339]
[1742572421408,3.444,1949.8,1949.7,1.3071]
[1742572421696,4.47023,1949.8,1949.7,1.3071]
[1742572421895,1.02636,1949.6,1949.4,3.2078]
[1742572422096,3.444,1949.8,1949.4,3.2078]
[1742572422097,2.31673,1949.7,1949.5,1.3071]
[1742572422297,1.02634,1949.6,1949.5,1.3071]
[1742572422496,5.76174,1949.6,1949.5,1.3071]
[1742572422699,5.76174,1949.6,1949.2,42.51731]
[1742572422700,1.02644,1949.4,1949.2,41.4908]
[1742572422899,4.7354,1949.6,1949.3,1.2976]
[1742572423298,4.7354,1949.6,1949.3,42.0976]
[1742572423604,3.445,1949.6,1949.4,4.23421]
[1742572423797,1.02639,1949.5,1949.4,1.2976]
[1742572424001,2.36829,1949.5,1949.4,1.2976]
[1742572424305,1.3419,1949.5,1949.4,1.2976]
[1742572424799,1.3419,1949.5,1949.4,4.5054]
[1742572425200,4.47135,1949.6,1949.4,4.5054]
[1742572425497,1.02648,1949.4,1949.2,0.6908]
[1742572425807,1.395,1949.3,1949.2,2.1132]
[1742572426202,4.47546,1949.4,1949.2,3.13975]
[1742572426405,4.47546,1949.4,1949.2,43.93975]
[1742572426605,3.449,1949.4,1949.2,43.93975]
[1742572426908,4.47545,1949.4,1949.2,3.13974]
[1742572427110,4.844,1949.4,1949.2,3.13974]
[1742572427306,5.87049,1949.4,1949.3,40.8]
[1742572427507,4.844,1949.4,1949.2,1.4224]
[1742572427708,1.0265,1949.3,1949.2,1.4224]
[1742572428013,1.395,1949.3,1949.2,43.24895]
[1742572428412,2.01188445,1949.3,1949.2,43.24895]
[1742572428724,3.03838445,1949.3,1949.2,43.24895]
[1742572428911,2.01188445,1949.3,1949.2,43.24895]
[1742572429109,0.61688445,1949.3,1949.2,43.24895]
[1742572429305,4.47545,1949.4,1949.2,42.8661]
[1742572429507,0.61689298,1949.3,1949.2,43.89265]
[1742572430614,1.03189839,1949.3,1949.2,43.89265]
[1742572431113,1.03191645,1949.3,1949.2,43.89265]
[1742572432504,3.2078,1950.1,1949.2,45.3661]
[1742572432808,1.02613,1950.0,1949.9,1.02618]
[1742572433010,1.2935,1950.0,1949.9,1.02618]
[1742572433611,4.47705,1950.2,1950.1,1.02608]
[1742572433809,1.2935,1950.2,1950.1,1.02608]
[1742572434308,0.00767794,1950.3,1950.2,1.02602]
[1742572434612,0.00767794,1950.3,1950.2,4.23382]
[1742572435616,1.38897794,1950.3,1950.2,4.23382]
[1742572435812,0.00767794,1950.3,1950.2,4.23382]
[1742572437015,22.46875502,1950.7,1950.6,1.02581]
[1742572437016,17.98996502,1950.7,1950.6,1.02581]
[1742572437314,19.01572502,1950.7,1950.6,1.02581]
[1742572437616,19.37126502,1950.7,1950.6,1.02581]
[1742572437810,17.98996502,1950.7,1950.6,4.23361]
[1742572438814,0.00767794,1950.8,1950.7,1.02576]
[1742572439118,1.03338794,1950.8,1950.7,2.41966]
[1742572439312,0.00767794,1950.8,1950.7,2.41966]
[1742572439919,1.03338794,1950.8,1950.7,2.41966]
[1742572440224,0.00767794,1950.8,1950.7,2.41966]
[1742572441217,2.33258794,1950.8,1950.7,1.3939]
[1742572441619,1.30687794,1950.8,1950.7,2.41966]
[1742572441819,2.33258794,1950.8,1950.7,2.41966]
[1742572442014,1.02581,1950.6,1950.5,1.03350794]
[1742572442221,1.0258,1950.7,1950.6,1.0258]
[1742572442416,4.4758,1950.7,1950.6,1.0258]
[1742572443008,4.7492,1950.7,1950.6,1.0258]
[1742572444621,5.1649624,1950.7,1950.6,1.0258]
[1742572444814,5.1649624,1950.7,1950.5,1.31417794]
[1742572445014,5.1649624,1950.7,1950.6,1.02581]
[1742572445214,5.77496,1950.7,1950.6,1.02581]
[1742572445511,5.77496,1950.7,1950.5,1.31417794]
[1742572445512,1.02581,1950.6,1950.5,1.31417794]
[1742572445712,2.34861,1950.6,1950.5,1.31417794]
[1742572445914,2.76426152,1950.6,1950.5,0.00767794]
[1742572446524,4.09096152,1950.6,1950.5,0.00767794]
[1742572446725,5.24387429,1950.6,1950.5,0.00767794]
[1742572447525,4.09096152,1950.6,1950.5,0.00767794]
[1742572447824,2.76426152,1950.6,1950.5,1.03354794]
[1742572448026,2.76426152,1950.6,1950.5,0.00767794]
[1742572448418,3.91730732,1950.6,1950.5,0.00767794]
[1742572448617,2.76426152,1950.6,1950.5,0.00767794]
[1742572449525,1.73845152,1950.6,1950.5,1.03354794]
[1742572449715,5.18145152,1950.6,1950.5,1.03354794]
[1742572450027,3.85865152,1950.6,1950.5,1.03354794]
[1742572450326,1.44146152,1950.6,1950.5,2.32504794]
[1742572450919,0.41565152,1950.6,1950.5,2.32504794]
[1742572451329,2.73496152,1950.6,1950.5,2.32504794]
[1742572451515,1.70915152,1950.6,1950.5,2.32504794]
[1742572452029,2.73496152,1950.6,1950.5,2.32504794]
[1742572452525,2.73496152,1950.6,1950.5,0.00767794]
[1742572452829,2.73496152,1950.6,1950.5,50.00767794]
[1742572453018,6.17896152,1950.6,1950.5,50.00767794]
[1742572453528,2.73496152,1950.6,1950.5,50.00767794]
[1742572453727,9.38476152,1950.6,1950.5,50.00767794]
[1742572454026,11.78536815,1950.6,1950.5,50.00767794]
[1742572454228,11.87206384,1950.6,1950.5,48.40371377]
[1742572454622,11.87206384,1950.6,1950.5,46.79971035]
[1742572455125,11.45641232,1950.6,1950.5,46.79971035]
[1742572455516,7.09515374,1950.6,1950.5,46.79971035]
[1742572455725,6.9663661,1950.6,1950.5,46.79971035]
[1742572456027,16.8143661,1950.6,1950.5,46.79971035]
[1742572456626,18.02699915,1950.6,1950.5,46.79971035]
[1742572458121,18.02703982,1950.6,1950.5,46.79971035]
[1742572459119,16.73062517,1950.6,1950.5,47.82558035]
[1742572459828,16.73062517,1950.6,1950.5,46.79971035]
[1742572460127,17.94672453,1950.6,1950.5,47.82558035]
[1742572460325,18.03350419,1950.6,1950.5,47.82558035]
[1742572460525,14.50472453,1950.6,1950.5,47.82558035]
[1742572460731,13.47891453,1950.6,1950.5,47.82558035]
[1742572460929,13.48050423,1950.6,1950.5,47.82558035]
[1742572461231,13.29021327,1950.6,1950.5,47.82558035]
[1742572461731,9.848,1950.6,1950.5,51.03338035]
[1742572462026,17.98996502,1950.7,1950.6,1.02581]
[1742572462223,19.11494347,1950.7,1950.6,3.04371]
[1742572462424,1.12497845,1950.7,1950.6,3.04371]
[1742572462719,2.35187664,1950.8,1950.7,1.02576]
[1742572462926,2.35187664,1950.8,1950.7,3.06716]
[1742572463129,3.74447664,1950.8,1950.7,3.06716]
[1742572464228,1.22689819,1950.8,1950.7,6.27496]
[1742572464434,2.25260819,1950.8,1950.7,6.27496]
[1742572464633,3.64520819,1950.8,1950.7,6.27496]
[1742572464833,2.48416073,1950.8,1950.5,33.22963509]
[1742572465031,3.50987073,1950.8,1950.7,1.02576]
[1742572465233,1.0258,1950.7,1950.6,1.02578]
[1742572465533,2.3261,1950.7,1950.6,41.82578]
[1742572465721,1.3003,1950.7,1950.6,41.82578]
[1742572465926,3.33627231,1950.8,1950.7,1.02576]
[1742572466129,3.61085231,1950.8,1950.7,1.02576]
[1742572466634,4.63656231,1950.8,1950.7,1.02576]
[1742572468436,4.63656231,1950.8,1950.7,2.43916]
[1742572468635,4.63656231,1950.8,1950.7,1.02576]
[1742572469233,3.33626231,1950.8,1950.7,1.02576]
[1742572469438,3.60555231,1950.8,1950.7,2.43916]
[1742572469637,3.60608857,1950.8,1950.7,2.43916]
[1742572469837,2.52189819,1950.8,1950.7,2.43916]
[1742572470139,3.54760819,1950.8,1950.7,2.43916]
[1742572470843,1.22689819,1950.8,1950.7,2.43916]
[1742572471340,2.25260819,1950.8,1950.7,2.43916]
[1742572471543,1.03338794,1950.8,1950.7,2.43916]
[1742572471839,1.39987794,1950.8,1950.7,2.43916]
[1742572472834,0.00767794,1950.8,1950.7,2.43916]
[1742572473138,1.21922025,1951.0,1950.9,1.02566]
[1742572473333,1.21922025,1951.0,1950.9,4.23346]
[1742572473643,5.5490317,1951.3,1951.1,1.02555]
[1742572473644,1.21922025,1951.2,1951.1,1.02555]
[1742572474138,2.24472025,1951.2,1951.1,1.02555]
[1742572474340,2.3346,1951.2,1951.1,1.02555]
[1742572474834,2.3346,1951.2,1951.1,2.42255]
[1742572475040,1.02555,1951.1,1951.0,0.00767794]
[1742572475340,6.42485,1951.1,1951.0,1.03327794]
[1742572475642,9.63265,1951.1,1951.0,1.03327794]
[1742572476241,6.42485,1951.1,1951.0,1.03327794]
[1742572477535,7.64415699,1951.1,1951.0,1.03327794]
[1742572477735,5.96740699,1951.1,1951.0,1.03327794]
[1742572478041,1.3091,1951.1,1951.0,1.03327794]
[1742572478231,2.33465,1951.1,1951.0,1.03327794]
[1742572478436,2.33465,1951.1,1951.0,1.73317794]
[1742572479842,1.3091,1951.1,1951.0,1.73317794]
[1742572480048,2.33465,1951.1,1951.0,1.73317794]
[1742572480851,1.3091,1951.1,1951.0,1.73317794]
[1742572481247,2.33465,1951.1,1951.0,2.37837794]
[1742572481450,1.3091,1951.1,1951.0,2.37837794]
[1742572481652,1.21930699,1951.2,1951.1,1.02555]
[1742572481851,3.54570699,1951.2,1951.1,2.34955]
[1742572482053,2.3264,1951.2,1951.1,2.34955]
[1742572482249,1.3009,1951.2,1951.1,2.34955]
[1742572483353,2.30976582,1951.3,1951.2,1.0255]
[1742572483354,1.22670904,1951.3,1951.2,1.0255]
[1742572483649,1.22670904,1951.3,1951.2,2.3521]
[1742572484052,0.00767794,1951.3,1951.2,2.3521]
[1742572484253,22.1101799,1951.4,1951.3,1.02544]
[1742572484456,22.1101799,1951.4,1951.3,2.35204]
[1742572484660,22.1101799,1951.4,1951.3,43.15204]
[1742572485254,1.29,1951.6,1951.5,1.02534]
[1742572485554,1.02529,1951.6,1951.5,1.02534]
[1742572486050,1.02529,1951.6,1951.5,2.35194]
[1742572486251,30.47773784,1951.7,1951.6,1.02529]
[1742572487154,30.47768784,1951.7,1951.6,1.02529]
[1742572487360,28.76365784,1951.7,1951.6,1.02529]
[1742572487661,29.78888784,1951.7,1951.6,1.02529]
[1742572487856,28.76365784,1951.7,1951.3,40.8]
[1742572488059,1.02542,1951.4,1951.3,1.02539]
[1742572488265,1.02544,1951.3,1951.2,5.82815]
[1742572488450,1.02544,1951.3,1951.2,1.02545]
[1742572488754,1.0255,1951.2,1951.1,3.73531]
[1742572491048,2.2438307,1951.3,1951.2,1.0255]
[1742572491354,2.9554807,1951.4,1951.3,1.02544]
[1742572491556,1.73713,1951.4,1951.3,1.02544]
[1742572492158,4.94493,1951.4,1951.3,1.02544]
[1742572492359,2.82009422,1951.4,1951.3,1.02544]
[1742572492661,4.03844492,1951.4,1951.3,1.02544]
[1742572493362,2.9554807,1951.4,1951.3,1.02544]
[1742572493661,1.73713,1951.4,1951.3,1.02544]
[1742572494058,0.7117,1951.4,1951.3,1.02544]
[1742572494456,1.73709,1951.4,1951.3,1.02544]
[1742572494857,4.94489,1951.4,1951.3,1.02544]
[1742572495361,6.02804991,1951.4,1951.3,1.02544]
[1742572495660,7.24640061,1951.4,1951.3,1.02544]
[1742572496063,4.03860061,1951.4,1951.3,1.02544]
[1742572496361,2.9554407,1951.4,1951.3,1.02544]
[1742572496657,1.02539,1951.4,1951.3,1.02544]
[1742572497452,1.8788507,1951.5,1951.4,1.02539]
[1742572497658,1.2183507,1951.5,1951.4,1.02539]
[1742572497860,2.3018983,1951.5,1951.4,1.02539]
[1742572498053,1.2183507,1951.5,1951.4,1.02539]
[1742572498454,3.32736534,1951.5,1951.4,1.02539]
[1742572498653,2.30202534,1951.5,1951.4,1.02539]
[1742572498959,1.02539,1951.4,1951.3,1.0254]
[1742572499163,1.02544,1951.3,1951.2,2.31465]
[1742572499362,2.44941,1951.4,1951.3,1.02544]
[1742572499563,2.44941,1951.4,1951.3,2.31464]
[1742572499762,1.424,1951.4,1951.3,2.31464]
[1742572500159,2.6423507,1951.4,1951.3,2.31464]
[1742572500565,1.2183507,1951.5,1951.4,1.02539]
[1742572500864,3.2078,1951.6,1951.3,1.2892]
[1742572500865,6.93428744,1951.6,1951.5,1.02534]
[1742572501068,2.6423507,1951.6,1951.5,1.02534]
[1742572501657,3.6676407,1951.6,1951.5,2.36894]
[1742572501966,4.75186162,1951.6,1951.5,2.36894]
[1742572502158,4.75186162,1951.6,1951.5,1.3436]
[1742572502358,7.95966162,1951.6,1951.5,1.02534]
[1742572502558,3.72657162,1951.6,1951.5,1.02534]
[1742572502858,1.02534,1951.5,1951.4,1.02537]
[1742572503059,1.02534,1951.5,1951.4,2.35917]
[1742572503060,2.36754,1951.5,1951.4,2.35917]
[1742572503265,1.3422,1951.5,1951.4,2.35917]
[1742572503462,2.36754,1951.5,1951.4,2.35917]
[1742572504570,1.3422,1951.5,1951.4,2.35917]
[1742572504773,2.2436707,1951.6,1951.5,1.02534]
[1742572505066,3.40755296,1951.6,1951.5,2.40414]
[1742572505262,2.38223296,1951.6,1951.5,2.40414]
[1742572505462,1.2978,1951.6,1951.5,2.40414]
[1742572506169,3.54382572,1951.6,1951.5,2.40414]
[1742572506365,4.62848311,1951.6,1951.5,2.40414]
[1742572506566,3.60326349,1951.6,1951.5,2.40414]
[1742572506765,2.51853572,1951.6,1951.5,2.40414]
[1742572507168,3.54382572,1951.6,1951.5,2.40414]
[1742572507573,2.51853572,1951.6,1951.5,2.40414]
[1742572508367,2.51853572,1951.6,1951.5,5.61194]
[1742572508564,22.11785784,1951.7,1951.6,1.02529]
[1742572508873,23.33856735,1951.7,1951.6,2.36069]
[1742572509373,16.69121372,1951.7,1951.6,8.29769]
[1742572510471,16.69121372,1951.7,1951.6,5.79769]
[1742572510966,16.69121372,1951.7,1951.6,8.29769]
[1742572511672,16.69121372,1951.7,1951.6,49.09769]
[1742572511873,0.00767794,1951.7,1951.6,49.09769]
[1742572512267,7.94e-06,1951.7,1951.6,49.09769]
[1742572516066,18.02682203,1951.8,1951.6,49.09769]
[1742572516067,15.54861997,1951.8,1951.7,1.02523]
[1742572516267,14.49164997,1951.8,1951.7,6.35253]
[1742572516474,14.49164997,1951.8,1951.7,1.4107]
[1742572516475,15.51682997,1951.8,1951.7,1.4107]
[1742572516772,1.02525,1951.7,1951.6,1.02524]
[1742572516978,2.36035,1951.7,1951.6,1.02524]
[1742572517176,1.3351,1951.7,1951.6,1.02524]
[1742572517367,2.36033,1951.7,1951.6,1.02524]
[1742572518262,1.02534,1951.6,1951.4,2.0458]
[1742572518468,1.02539,1951.5,1951.4,1.02535]
[1742572521074,1.02539,1951.4,1951.3,45.26139]
[1742572521272,3.72129,1951.4,1951.3,45.26139]
[1742572521967,3.72129,1951.4,1951.3,41.82539]
[1742572522167,3.72129,1951.4,1951.1,1.02553]
[1742572522168,1.02555,1951.2,1951.1,1.02553]
[1742572522773,1.02555,1951.2,1951.1,41.82553]
[1742572523170,1.02555,1951.2,1951.1,1.02553]
[1742572523378,2.38458,1951.3,1951.2,1.0255]
[1742572523678,1.02548,1951.3,1951.2,1.0255]
[1742572525072,1.02548,1951.3,1951.0,44.24367794]
[1742572525277,1.02553,1951.2,1951.1,1.0255]
[1742572526280,1.02547,1951.3,1951.2,1.02545]
[1742572527079,1.0255,1951.2,1951.1,1.0255]
[1742572528886,1.3368,1951.4,1951.2,1.02546]
[1742572528887,1.02549,1951.3,1951.2,1.02546]
[1742572530793,1.02555,1951.1,1950.9,3.9196]
[1742572531089,1.0256,1951.0,1950.9,1.02561]
[1742572531480,1.02559,1951.1,1951.0,1.02557]
[1742572531687,5.79821,1951.4,1951.3,1.02544]
[1742572531988,5.79821,1951.4,1951.2,1.02546]
[1742572531989,1.02548,1951.3,1951.2,1.02546]
[1742572532688,5.79822,1951.4,1951.3,1.02544]
[1742572533077,1.3368,1951.4,1951.3,1.02544]
[1742572533279,0.00767794,1951.8,1951.7,1.02523]
[1742572533485,1.11970425,1951.8,1951.7,1.02523]
[1742572533689,0.00767794,1951.8,1951.7,1.02523]
[1742572534481,0.00767794,1951.8,1951.7,2.43433]
[1742572536385,0.00767794,1951.8,1951.7,5.64213]
[1742572537183,1.03285794,1951.8,1951.7,2.43433]
[1742572537390,1.03285794,1951.8,1951.7,1.02523]
[1742572537593,0.00767794,1951.8,1951.7,2.36913]
[1742572537988,0.00767794,1951.8,1951.7,5.57693]
[1742572538995,1.37717794,1951.8,1951.7,5.57693]
[1742572539195,1.37717794,1951.8,1951.7,1.02523]
[1742572539196,2.40235794,1951.8,1951.7,1.02523]
[1742572539696,1.02523,1951.7,1951.6,1.02524]
[1742572539896,1.02523,1951.7,1951.5,1.0253]
[1742572539897,1.02533,1951.6,1951.5,1.0253]
[1742572540097,2.35003,1951.6,1951.5,1.0253]
[1742572540791,1.02539,1951.5,1951.4,1.02535]
[1742572541092,1.02544,1951.4,1951.3,1.0254]
[1742572541295,1.02544,1951.3,1951.2,1.02545]
[1742572541595,1.0255,1951.2,1951.1,1.02551]
[1742572541793,1.02555,1951.1,1951.0,45.03335]
[1742572541991,2.36415,1951.1,1951.0,41.82555]
[1742572542590,1.3386,1951.1,1951.0,41.82555]
[1742572542893,2.36415,1951.1,1951.0,43.12445]
[1742572543096,1.3386,1951.1,1951.0,43.12445]
[1742572544297,2.36415,1951.1,1951.0,43.12445]
[1742572544500,1.3386,1951.1,1951.0,43.12445]
[1742572544890,2.36415,1951.1,1951.0,43.12445]
[1742572545090,1.3386,1951.1,1951.0,43.12445]
[1742572546799,1.21818755,1951.5,1951.4,1.02539]
[1742572547393,1.0253,1951.6,1951.5,1.02534]
[1742572547590,5.84807,1951.7,1951.6,1.02529]
[1742572547795,1.02534,1951.6,1951.5,1.02531]
[1742572547999,1.02534,1951.6,1951.4,1.4125]
[1742572548000,1.02534,1951.5,1951.4,1.02536]
[1742572548194,1.02534,1951.5,1951.1,109.91346]
[1742572548195,3.436,1951.5,1951.1,103.9136]
[1742572548396,1.0255,1951.3,1951.2,1.02547]
[1742572548601,2.38913,1951.4,1951.3,1.02544]
[1742572549189,1.3637,1951.4,1951.3,1.02544]
[1742572549398,2.38909,1951.4,1951.3,1.02544]
[1742572549802,1.3637,1951.4,1951.3,1.02544]
[1742572550203,2.38909,1951.4,1951.3,1.02544]
[1742572550404,1.3637,1951.4,1951.3,1.02544]
[1742572550609,2.38909,1951.4,1951.3,1.02544]
[1742572553794,3.60822896,1951.4,1951.3,1.02544]
[1742572554000,3.60822896,1951.4,1951.2,1.02547]
[1742572554001,1.0255,1951.3,1951.2,1.02547]
[1742572554199,2.9867,1951.3,1951.2,1.02547]
[1742572554400,1.9612,1951.3,1951.2,1.02547]
[1742572554600,1.9612,1951.3,1951.2,2.35047]
[1742572554799,2.98664,1951.3,1951.2,2.35047]
[1742572555005,1.2986,1951.3,1951.2,2.35047]
[1742572556706,2.32404,1951.3,1951.2,2.35047]
[1742572557214,1.2986,1951.3,1951.2,2.35047]
[1742572559607,2.32404,1951.3,1951.2,2.35047]
[1742572559806,1.2986,1951.3,1951.2,2.35047]
[1742572560413,2.32404,1951.3,1951.2,2.35047]
[1742572560611,1.2986,1951.3,1951.2,2.35047]
[1742572561006,2.32404,1951.3,1951.2,2.35047]
[1742572561206,1.2986,1951.3,1951.2,2.35047]
[1742572561602,4.0986,1951.6,1951.5,1.02534]
[1742572561802,3.2078,1951.9,1951.4,3.2078]
[1742572562006,4.46887794,1951.8,1951.7,1.02523]
[1742572562609,4.66346317,1951.8,1951.7,1.02523]
[1742572562811,1.22746317,1951.8,1951.7,1.02523]
[1742572563011,1.22746317,1951.8,1951.7,4.23303]
[1742572563211,0.00767794,1951.8,1951.7,4.90713]
[1742572563411,0.00767794,1951.8,1951.7,6.25943]
[1742572563811,0.00767794,1951.8,1951.7,1.02523]
[1742572564008,1.37557794,1951.8,1951.7,1.02523]
[1742572566516,22.00471709,1952.1,1952.0,1.02508]
[1742572567311,22.00471709,1952.1,1952.0,2.39628]
[1742572567809,22.00471709,1952.1,1952.0,5.83128]
[1742572569421,22.00471709,1952.1,1952.0,46.63128]
[1742572570217,0.00767794,1952.2,1952.1,1.02502]
[1742572570414,1.36907794,1952.2,1952.1,2.40532]
[1742572572221,1.02502,1952.1,1952.0,41.82502]
[1742572572517,3.9033,1952.1,1952.0,1.02502]
[1742572572714,4.57687794,1952.2,1952.1,1.02502]
[1742572572914,1.36907794,1952.2,1952.1,1.02502]
[1742572575922,1.36907794,1952.2,1952.1,4.45902]
[1742572578220,0.00767794,1952.2,1952.1,10.16682]
[1742572578418,7.94e-06,1952.2,1952.1,10.16682]
[1742572578619,18.30321503,1952.4,1952.3,1.02492]
[1742572578814,17.00341503,1952.4,1952.3,48.46672]
[1742572579010,14.12517503,1952.4,1952.3,50.96672]
[1742572579214,14.12517503,1952.4,1952.3,52.33052]
[1742572579816,14.12517503,1952.4,1952.3,49.83052]
[1742572580021,14.12517503,1952.4,1952.3,46.62272]
[1742572580222,14.12517503,1952.4,1952.3,49.83052]
[1742572580817,14.12517503,1952.4,1952.3,52.33052]
[1742572581319,11.53332503,1952.4,1952.3,52.33052]
[1742572581823,10.49250503,1952.4,1952.3,52.33052]
[1742572582122,16.02281681,1952.5,1952.4,1.02487]
[1742572582322,16.02281681,1952.5,1952.4,2.39667]
[1742572583622,0.00767794,1952.5,1952.4,2.39667]
[1742572584429,2.44998794,1952.5,1952.4,4.45787]
[1742572584628,2.44998794,1952.5,1952.4,1.02487]
[1742572584826,5.65778794,1952.5,1952.4,1.02487]
[1742572585533,4.63297794,1952.5,1952.4,1.02487]
[1742572586034,5.65778794,1952.5,1952.4,1.02487]